[Event "44th Chess Olympiad Women 2022"]
[Site "Chennai"]
[Date "2022.08.05"]
[Round "7.40"]
[White "Nansubuga, Gloria"]
[Black "Gjergji, Rozana"]
[Result "0-1"]
[ECO "B01"]
[WhiteElo "1538"]
[BlackElo "1920"]
[Annotator "TA"]
[PlyCount "76"]
[EventDate "2022.07.29"]
[EventType "team-tourn"]
[EventCountry "IND"]
[SourceTitle "playchess.com"]
[Source "ChessBase"]
[SourceQuality "1"]
[WhiteTeam "Uganda"]
[BlackTeam "Albania"]
[WhiteTeamCountry "UGA"]
[BlackTeamCountry "ALB"]
[TimeControl "40/5400+30:1800+30"]

{[%evp 14,76,48,28,116,100,115,101,168,160,170,155,140,131,159,56,38,53,33,43,459,-20,-27,-27,-29,-24,-24,-24,-20,-33,-35,-133,-134,-129,-121,-135,-128,-195,-149,-164,-181,-259,-258,-247,-233,-347,-226,-294,-265,-295,-302,-305,-295,-335,-345,-385,-369,-409,-394,-3000,-1722,-1022,-337,-29981,-29982]} 1. e4 {[%emt 0:00:06]} d5 {[%emt 0:00:09]} 2. exd5 {[%emt 0:00:08]} Qxd5 {[%emt 0:00:01]} 3. Nc3 {[%emt 0:00:20]} Qa5 {[%emt 0:00:09]} 4. d4 {[%emt 0:00:07]} c6 {[%emt 0:00:12]} 5. Bc4 {[%emt 0:00:12]} Nf6 {[%emt 0:00:53]} 6. Nf3 {[%emt 0:00:11]} Bf5 {[%emt 0:00:40]} 7. Bd2 {[%emt 0:00:17]} e6 {[%emt 0:00:35] 7...Nbd7 is more fashionable.} 8. Qe2 {[%emt 0:00:23][%cal Od4d5]} Nbd7 {[%emt 0:04:37] B01: Scandinavian Defence.} (8... Bb4 $11) 9. d5 $1 $16 {[%emt 0:06:18]} cxd5 {[%emt 0:09:00]} 10. Nxd5 {[%emt 0:00:31][%mdl 64] Pin} Qd8 {[%emt 0:00:16]} (10... Qc5 $16 {is a better defense.} 11. Nxf6+ gxf6) 11. Nxf6+ $18 {[%emt 0:03:27]} gxf6 {[%emt 0:04:02]} 12. O-O-O {[%emt 0:01:07] Nd4 is the strong threat.} Qc7 {[%emt 0:06:20]} 13. Nd4 {[%emt 0:01:32]} Bg6 {[%emt 0:03:25] [#]} 14. Nxe6 $146 {[%emt 0:04:18]} ({Predecessor:} 14. f4 O-O-O 15. Nb5 Qb6 16. a4 Kb8 {½-½ (16) Lodes,H (2060)-Luther,H (1878) Nuremberg 2011}) 14... fxe6 $14 {[%emt 0:00:12]} 15. Qxe6+ {[%emt 0:00:06]} Be7 $1 {[%emt 0:00:04][%cal Oe8c8]} 16. Bb4 $1 {[%emt 0:03:14][%csl Gb4][%cal Re6e7]} Ne5 $2 {[%emt 0:01:25][%mdl 8192] [#]} (16... Nc5 $14 17. Qe3 (17. Bxc5 Qxc5 18. Rhe1 Rd8 $11) 17... a5) 17. Bb5+ $2 {[%emt 0:00:05]} (17. Rhe1 $1 $18) 17... Kf8 $1 $11 {[%emt 0:01:49][%csl Gg6][%cal Rc7c2,Be8f8,Bf8g8,Bg8g7][%mdl 32]} 18. Qxf6+ {[%emt 0:03:03]} Kg8 {[%emt 0:01:51][%csl Gg6][%cal Rc7c2] Dancing on a razor blade.} 19. Qe6+ {[%emt 0:01:40]} Nf7 $1 {[%emt 0:00:12][%csl Gg6][%cal Rc7c2]} 20. Bc3 {[%emt 0:01:04] [#]} Bb4 $1 {[%emt 0:01:40]} 21. Rd7 {[%emt 0:05:09]} (21. Qf6 Bxc3) 21... Qf4+ {[%emt 0:01:18]} 22. Kb1 {[%emt 0:01:38]} (22. Bd2 $1 $15 Bxd2+ 23. Rxd2) 22... Bxc3 $17 {[%emt 0:00:31]} 23. bxc3 {[%emt 0:01:46] [#]} Kg7 $1 $40 {[%emt 0:10:04][%mdl 128] Black attacks with force.} (23... Qxf2 24. Bd3 Qb6+ 25. Qxb6 axb6 26. Rxb7 $11) 24. Rhd1 {[%emt 0:16:59]} (24. Rxb7 $2 Rab8 25. g3 Qf3 $19) 24... Rhe8 {[%emt 0:05:58]} (24... Qxf2 $6 25. Rxf7+ Bxf7 26. Qg4+ Bg6 27. Rd7+ Kh6 28. Qh3+ Kg5 29. Rd5+ Bf5 30. Bd3 Qg1+ 31. Kb2 Qb6+ 32. Bb5 $11) 25. Qb3 {[%emt 0:02:37]} (25. Qc4 $17 Qxf2 26. Rf1 Re1+ 27. Rxe1 Qxe1+ 28. Kb2) 25... a6 {[%emt 0:14:13]} ({Stronger than} 25... Qxf2 26. R7d2 Qc5 27. Rd5 $11 (27. Bxe8 Rxe8 28. Rd7 Re2 $11)) (25... Rad8 $19 {Threatens to win with ...Rxd7.} 26. Rxd8 Rxd8 27. Rxd8 Nxd8) 26. R7d4 {[%emt 0:03:02]} Re4 {[%emt 0:02:45]} ({Worse is} 26... Qxf2 27. Bxe8 Rxe8 28. R4d2 $15) 27. f3 {[%emt 0:13:41]} (27. Rxe4 $142 Qxe4 28. Bf1) 27... Rxd4 $19 {[%emt 0:02:27]} 28. Rxd4 {[%emt 0:00:05]} Qxh2 {[%emt 0:00:29]} 29. Bc4 {[%emt 0:03:53]} (29. Bd3 $142) 29... Rf8 {[%emt 0:03:11]} 30. Bd3 {[%emt 0:08:33]} Qxg2 {[%emt 0:03:03]} 31. Bxg6 {[%emt 0:06:29]} hxg6 {[%emt 0:00:08]} ({Weaker is} 31... Qxg6 32. Rg4 Ng5 33. f4 $16) 32. Qxb7 {[%emt 0:04:06]} Qg3 {[%emt 0:00:50] aiming for ...Rb8.} 33. Qxa6 {[%emt 0:01:54]} Qxf3 {[%emt 0:00:58]} 34. Qa7 {[%emt 0:02:13]} Qxc3 {[%emt 0:00:16] Hoping for ...Rc8.} 35. Rd7 {[%emt 0:00:59]} Kg8 {[%emt 0:02:48][%cal Of7d6] ( -> ...Nd6!)} 36. Qc7 {[%emt 0:03:11] Against Nd6} (36. Qb6 Nd6 37. Qb3+ Nc4 38. Rd1) 36... Qb4+ {[%emt 0:02:18]} 37. Kc1 {[%emt 0:02:20]} Re8 $2 {[%emt 0:04:42]} 38. c3 $2 {[%emt 0:01:19]} (38. Qg3 $19 g5 39. a3 Re1+ 40. Rd1 Rxd1+ 41. Kxd1 Qd4+ 42. Ke2) 38... Qa3+ {[%emt 0:00:11] Weighted Error Value: White=0.96/Black=0.43} 0-1

[Event "44th Chess Olympiad Women 2022"]
[Site "Chennai"]
[Date "2022.08.05"]
[Round "7.41"]
[White "Kannappan, Sigappi"]
[Black "Cooke, Suzie G."]
[Result "0-1"]
[ECO "C14"]
[WhiteElo "1914"]
[BlackElo "1936"]
[Annotator "TA"]
[PlyCount "96"]
[EventDate "2022.07.29"]
[EventType "team-tourn"]
[EventCountry "IND"]
[SourceTitle "playchess.com"]
[Source "ChessBase"]
[SourceQuality "1"]
[WhiteTeam "Hong Kong"]
[BlackTeam "Scotland"]
[WhiteTeamCountry "HKG"]
[BlackTeamCountry "SCO"]
[TimeControl "40/5400+30:1800+30"]

{[%evp 13,96,37,56,27,31,33,33,-3,17,27,32,6,40,52,87,32,93,46,40,-601,-595,-588,-501,-587,-577,-559,-583,-604,-599,-652,-661,-653,-657,-683,-671,-727,-705,-716,-707,-847,-832,-932,-930,-998,-1002,-952,-840,-938,-884,-1018,-933,-956,-934,-922,-910,-911,-909,-902,-886,-1112,-1108,-1166,-1145,-1131,-1043,-977,-995,-1197,-1214,-1188,-1187,-1800,-1734,-1700,-1699,-1612,-1758,-3061,-2974,-29990,-29991,-29991,-29992,-29993,-29994]} 1. e4 {[%emt 0:00:29]} e6 {[%emt 0:00:06]} 2. d4 {[%emt 0:00:04]} d5 {[%emt 0:00:04]} 3. Nc3 {[%emt 0:00:05]} Nf6 {[%emt 0:00:09]} 4. Bg5 {[%emt 0:00:05]} Be7 {[%emt 0:05:05]} 5. e5 {[%emt 0:00:07]} Nfd7 {[%emt 0:00:09]} 6. h4 {[%emt 0:00:10]} a6 {[%emt 0:00:25]} 7. Qg4 {[%emt 0:00:22]} Kf8 {[%emt 0:05:37]} 8. Bxe7+ {[%emt 0:17:28] C14: French: Classical System: 4 Bg5 Be7 main line.} Qxe7 {[%emt 0:00:08]} 9. O-O-O {[%emt 0:05:49]} c5 {[%emt 0:01:40]} 10. f4 {[%emt 0:02:19] White is slightly better.} cxd4 {[%emt 0:05:10]} 11. Nce2 {[%emt 0:00:43]} Nc6 {[%emt 0:05:55]} 12. Nxd4 {[%emt 0:05:06] [#]} Qb4 $146 {[%emt 0:21:10]} (12... h5 $5 {[%cal Rh5g4]} 13. Qg3 Nxd4 14. Rxd4 Nc5 $11) ({Predecessor:} 12... Nxd4 13. Rxd4 b5 14. Bd3 Bb7 15. h5 Rc8 16. Qe2 Nc5 17. g4 b4 18. Kb1 a5 {1-0 (57) Mazi,L (2365)-Povse,M (2155) Bled 1994}) 13. Nge2 {[%emt 0:12:55]} Nc5 {[%emt 0:04:49] [#]} 14. Rh3 {[%emt 0:14:41]} (14. h5 $1 $16) 14... Ne4 {[%emt 0:09:49] [#]} (14... h5 $14 15. Qf3 Nxd4 16. Nxd4 g6) 15. Nxc6 {[%emt 0:04:08]} ({White should try} 15. h5 $1 $16) 15... bxc6 $14 {[%emt 0:00:14]} 16. Rd4 $2 {[%emt 0:01:50][%mdl 8192] This move loses the game for White.} (16. h5 $14) 16... Qe1+ $19 {[%emt 0:01:03]} 17. Rd1 {[%emt 0:00:06] [#]} Qxd1+ {[%emt 0:00:28][%mdl 512]} 18. Kxd1 {[%emt 0:00:31]} Nf2+ {[%emt 0:00:05]} 19. Kd2 {[%emt 0:02:36]} Nxg4 {[%emt 0:00:07]} 20. Rc3 {[%emt 0:00:48]} Nh2 {[%emt 0:00:44]} 21. Ng3 {[%emt 0:00:06]} Nxf1+ {[%emt 0:00:05]} 22. Nxf1 {[%emt 0:00:03]} Bd7 {[%emt 0:00:09]} 23. Rb3 {[%emt 0:00:31]} Ke7 {[%emt 0:00:33]} 24. Rg3 {[%emt 0:01:12]} g6 {[%emt 0:00:13]} 25. Ne3 {[%emt 0:02:03]} h5 {[%emt 0:00:11]} 26. c4 {[%emt 0:00:56]} Rhb8 {[%emt 0:02:50]} 27. b3 {[%emt 0:01:08]} a5 {[%emt 0:09:59]} 28. cxd5 {[%emt 0:07:34]} cxd5 {[%emt 0:00:00]} 29. Nc2 {[%emt 0:00:16]} Kf8 {[%emt 0:00:00]} 30. Rg5 {[%emt 0:01:19]} Ra7 {[%emt 0:00:59]} 31. g4 {[%emt 0:00:14]} hxg4 {[%emt 0:00:16]} 32. Rxg4 {[%emt 0:00:05]} Ke7 {[%emt 0:01:18]} 33. Rg3 {[%emt 0:03:16]} Rh8 {[%emt 0:01:19]} 34. Rh3 {[%emt 0:00:09]} f6 {[%emt 0:00:29]} 35. Nd4 {[%emt 0:00:31]} Rb7 {[%emt 0:03:33]} 36. Nf3 {[%emt 0:03:00]} Rb4 {[%emt 0:04:52]} 37. exf6+ {[%emt 0:01:42]} Kxf6 {[%emt 0:00:36]} 38. Ne5 {[%emt 0:00:05]} Be8 {[%emt 0:00:35]} 39. Nd3 {[%emt 0:02:02]} Re4 {[%emt 0:00:26]} 40. a3 {[%emt 0:02:17]} Bb5 {[%emt 0:00:34] Hoping for ...Rd4.} 41. Nc5 {[%emt 0:35:29]} Rxf4 {[%emt 0:30:30]} 42. Re3 {[%emt 0:00:28]} e5 {[%emt 0:01:05]} 43. a4 {[%emt 0:00:29]} d4 {[%emt 0:06:09]} 44. Ne4+ {[%emt 0:05:16]} Ke6 {[%emt 0:03:10]} 45. Re1 {[%emt 0:00:00] [#]} Kd5 $1 {[%emt 0:00:00]} 46. Ng5 {[%emt 0:00:00]} (46. Nc5 Rf2+) 46... Rf2+ {[%emt 0:00:00] Black mates.} 47. Kd1 {[%emt 0:00:00]} Bd3 {[%emt 0:00:00]} 48. Nh3 {[%emt 0:00:00]} Ra2 {[%emt 0:00:00] Weighted Error Value: White=0.68/Black=0.16 (very precise)} 0-1

[Event "44th Chess Olympiad Women 2022"]
[Site "Chennai"]
[Date "2022.08.05"]
[Round "7.41"]
[White "Roy, Ali"]
[Black "Deng, Jing Xin Crystal"]
[Result "1/2-1/2"]
[ECO "A08"]
[WhiteElo "1893"]
[BlackElo "1914"]
[Annotator "TA"]
[PlyCount "62"]
[EventDate "2022.07.29"]
[EventType "team-tourn"]
[EventCountry "IND"]
[SourceTitle "playchess.com"]
[Source "ChessBase"]
[SourceQuality "1"]
[WhiteTeam "Scotland"]
[BlackTeam "Hong Kong"]
[WhiteTeamCountry "SCO"]
[BlackTeamCountry "HKG"]
[TimeControl "40/5400+30:1800+30"]

{[%evp 18,62,-33,-45,-37,-61,-41,-51,-47,-57,-40,-66,-52,-59,-31,-30,-37,-58,-41,-44,-45,-42,-41,-52,-47,-51,-32,-105,-32,-36,-27,-53,-46,-110,-120,-175,-28,-99,-100,-98,-114,-100,-104,-228,-208,-231,-169]} 1. Nf3 {[%emt 0:00:04]} d5 {[%emt 0:00:15]} 2. g3 {[%emt 0:00:05]} c5 {[%emt 0:00:05]} 3. Bg2 {[%emt 0:00:09]} Nf6 {[%emt 0:00:05]} 4. O-O {[%emt 0:00:13]} Nc6 {[%emt 0:00:05]} 5. d3 {[%emt 0:00:21]} e5 {[%emt 0:00:05]} 6. Nbd2 {[%emt 0:00:43]} Be7 {[%emt 0:00:09]} 7. e4 {[%emt 0:00:22]} O-O {[%emt 0:00:44]} 8. exd5 {[%emt 0:04:08]} Nxd5 {[%emt 0:00:08]} 9. Nc4 {[%emt 0:01:42]} f6 {[%emt 0:01:08]} 10. a4 {[%emt 0:02:35]} Be6 {[%emt 0:01:02] A08: King's Indian Attack.} 11. Bd2 {[%emt 0:09:20] [#]} Rb8 $146 {[%emt 0:02:32]} ({Predecessor:} 11... Qd7 12. Ne3 Rad8 13. Nxd5 Bxd5 14. Bc3 c4 15. dxc4 Bxc4 16. Qxd7 Rxd7 {½-½ (41) Reis,A-Toth,P (2230) Itapiruba 1997}) 12. Re1 {[%emt 0:00:28]} Qd7 {[%emt 0:02:27] Black is slightly better.} 13. Ne3 {[%emt 0:05:37]} Rbd8 {[%emt 0:11:12]} 14. Qe2 {[%emt 0:03:30]} Qc8 {[%emt 0:12:16]} 15. h4 {[%emt 0:04:15]} Nd4 {[%emt 0:06:08]} 16. Nxd4 {[%emt 0:03:43]} cxd4 {[%emt 0:00:07]} 17. Nc4 {[%emt 0:00:41]} Bg4 {[%emt 0:12:30]} 18. f3 {[%emt 0:03:52]} Bh3 {[%emt 0:01:40]} 19. f4 {[%emt 0:01:50]} Bxg2 {[%emt 0:02:10]} 20. Qxg2 {[%emt 0:00:56]} exf4 $1 {[%emt 0:02:09]} 21. gxf4 {[%emt 0:01:22]} Qf5 {[%emt 0:05:15]} 22. Kh1 {[%emt 0:05:38]} ({Better is} 22. Re4 $15) 22... Rd7 {[%emt 0:05:05]} (22... Qh5 $17 23. Qh3 f5) 23. Re4 {[%emt 0:02:49]} (23. Rg1 Bb4 24. Bxb4 Nxb4 $17) 23... Qh5 {[%emt 0:08:04]} 24. f5 {[%emt 0:07:18]} Qxf5 {[%emt 0:00:16]} 25. Rf1 {[%emt 0:00:37]} (25. Rxd4 $15 Qh5 26. Qh3 (26. Rg1 $2 Bc5 $19)) 25... Qh5 $1 $17 {[%emt 0:01:19]} (25... Qg6 26. Rg4 Qh5 27. Ne5 $1 $18 {[%mdl 512]} (27. Rxg7+ Kh8 $16) (27. Rxd4 Ne3 $17)) 26. Rxd4 {[%emt 0:03:32] [#]} (26. Qe2 $17 Qxe2 27. Rxe2) 26... Bc5 {[%emt 0:01:58]} (26... Ne3 $1 $19 {[%cal Re3g2][%mdl 512]} 27. Bxe3 (27. Nxe3 $2 Rxd4 28. Nf5 Rxh4+ 29. Nxh4 Qxh4+ 30. Qh2 Qxa4 $19) 27... Rxd4 28. Bxd4 Qxh4+ 29. Qh2 Qxd4) 27. Rg4 {[%emt 0:09:42] [#]} (27. Qg4 $11 Qxg4 28. Rxg4) 27... f5 $1 $36 {[%emt 0:02:30][%mdl 2048] Black is really pushing.} 28. Rg3 {[%emt 0:01:53]} Qxh4+ {[%emt 0:05:06]} 29. Rh3 {[%emt 0:00:24]} Qf6 {[%emt 0:02:59]} 30. Bg5 {[%emt 0:02:33]} (30. a5 $17) 30... Qe6 $19 {[%emt 0:01:05]} 31. Qh2 {[%emt 0:02:00]} g6 {[%emt 0:02:03] Weighted Error Value: White=0.29 (precise) /Black=0.17 (very precise)} 1/2-1/2

[Event "44th Chess Olympiad Women 2022"]
[Site "Chennai"]
[Date "2022.08.05"]
[Round "7.42"]
[White "Mouradian, Knarik"]
[Black "Miller, Rachel"]
[Result "1/2-1/2"]
[ECO "C47"]
[WhiteElo "2121"]
[BlackElo "1961"]
[Annotator "TA"]
[PlyCount "124"]
[EventDate "2022.07.29"]
[EventType "team-tourn"]
[EventCountry "IND"]
[SourceTitle "playchess.com"]
[Source "ChessBase"]
[SourceQuality "1"]
[WhiteTeam "Lebanon"]
[BlackTeam "Jamaica"]
[WhiteTeamCountry "LBN"]
[BlackTeamCountry "JAM"]
[TimeControl "40/5400+30:1800+30"]

{[%evp 18,124,-41,-33,-1,0,117,81,93,78,83,95,137,91,96,74,167,37,37,36,77,64,62,10,43,40,58,0,0,0,0,0,17,17,12,12,11,16,18,17,30,29,62,27,62,8,47,10,23,0,0,0,0,-8,-8,-264,-202,-715,-763,-522,-255,-252,-8,-8,-8,-8,-8,-8,-8,-8,0,-8,0,0,0,0,0,0,0,-8,-8,-8,-8,-8,-8,-8,-8,-8,-8,-8,-8,-8,-8,-8,-8,-8,0,0,0,0,0,0,0,0,0,0,0,0,0]} 1. e4 {[%emt 0:00:08]} e5 {[%emt 0:00:21]} 2. Nf3 {[%emt 0:00:07]} Nc6 {[%emt 0:00:18]} 3. Nc3 {[%emt 0:00:24]} Nf6 {[%emt 0:00:25]} 4. d4 {[%emt 0:00:22]} exd4 {[%emt 0:00:24]} 5. Nxd4 {[%emt 0:00:08]} Bb4 {[%emt 0:00:26]} 6. Nxc6 {[%emt 0:00:25]} bxc6 {[%emt 0:00:26]} 7. Bd3 {[%emt 0:00:27]} O-O {[%emt 0:00:26]} 8. O-O {[%emt 0:01:17]} d5 {[%emt 0:01:02]} 9. e5 {[%emt 0:03:13]} Ng4 {[%emt 0:02:47]} 10. Bf4 {[%emt 0:01:04]} Re8 {[%emt 0:03:59] C47: Scotch Four Knights and Four Knights with 4 g3.} 11. Re1 {[%emt 0:34:41]} d4 {[%emt 0:17:21]} (11... f6 $11 {remains equal.}) 12. a3 $1 $16 {[%emt 0:13:12]} dxc3 {[%emt 0:02:46] White is better.} 13. axb4 {[%emt 0:00:06]} cxb2 {[%emt 0:00:33]} 14. Rb1 {[%emt 0:00:53] [#]} Be6 $146 {[%emt 0:04:38]} ({Predecessor:} 14... g6 15. h3 Qd4 16. Qf3 Nxe5 17. Qg3 f6 18. Qh4 Bd7 19. Re4 Qc3 20. Bxe5 fxe5 {0-1 (44) Von Estorff,J (2125)-Brockhoff,M (1985) Playchess.com INT 2020}) 15. Qf3 {[%emt 0:07:48]} (15. h3 $142 Nxf2 16. Kxf2) 15... f6 {[%emt 0:12:09]} 16. h3 {[%emt 0:16:53]} (16. Rxb2 {with more complications.} Nxe5 17. Bxe5 fxe5 18. Qxc6 Qd4 19. Rbb1) 16... fxe5 {[%emt 0:15:44]} (16... Nxe5 $16 {is a better defense.} 17. Bxe5 fxe5) 17. hxg4 {[%emt 0:01:17]} (17. Bg3 $18 Nf6 18. Bxe5 (18. Rxb2 e4 $14)) 17... exf4 $14 {[%emt 0:00:44]} 18. Qxc6 {[%emt 0:06:56]} Bxg4 {[%emt 0:05:08]} 19. Rxe8+ {[%emt 0:02:00]} Qxe8 {[%emt 0:00:08]} 20. Qc4+ {[%emt 0:00:39]} (20. Qxc7 $14 f3 21. Qc4+ (21. gxf3 Bxf3 22. Qc5 Qd7 $15) 21... Qe6 22. gxf3 (22. Rxb2 Rc8 $14)) 20... Be6 {[%emt 0:04:15]} (20... Qe6 $5 {[%cal Re6c4]}) 21. Qe4 {[%emt 0:00:46]} g6 {[%emt 0:01:02] [#]} 22. Rxb2 {[%emt 0:02:36]} (22. Bb5 $1 $14 Qc8 23. Rxb2) 22... Bf7 $11 {[%emt 0:01:51]} 23. Qxf4 {[%emt 0:01:51]} Qe1+ {[%emt 0:01:57]} 24. Kh2 $1 {[%emt 0:00:04]} Re8 {[%emt 0:01:42]} 25. Bc4 $36 {[%emt 0:02:05][%mdl 2048] White has good play.} Re7 {[%emt 0:10:14] aiming for ...Qc3.} 26. Rb3 {[%emt 0:00:27] Against Qc3} Bxc4 {[%emt 0:00:54]} 27. Qxc4+ {[%emt 0:00:02]} Qe6 {[%emt 0:00:08]} (27... Rf7 {seems wilder.} 28. Rd3 Qe5+ 29. g3 Kg7) 28. Qxe6+ {[%emt 0:01:10]} Rxe6 {[%emt 0:00:03][%mdl 4096] Endgame KR-KR} 29. Rc3 {[%emt 0:01:17]} c6 {[%emt 0:00:46]} 30. Kg3 {[%emt 0:00:30]} Kf7 {[%emt 0:01:30]} 31. f4 {[%emt 0:00:31]} ({Better is} 31. f3 $14) 31... h5 {[%emt 0:02:46]} 32. Ra3 {[%emt 0:01:08]} Re7 {[%emt 0:00:13]} 33. Ra6 {[%emt 0:00:14]} Re3+ {[%emt 0:01:50]} 34. Kh4 {[%emt 0:01:52]} Rc3 {[%emt 0:00:06]} 35. Kg5 {[%emt 0:00:47]} Rg3+ {[%emt 0:04:43]} 36. Kh6 $2 {[%emt 0:00:02][%mdl 8192]} (36. Kh4 $1 $11 Rxg2 37. Rxa7+ Ke6 38. Ra6) 36... Rxg2 $19 {[%emt 0:00:10] Hoping for ...h4.} 37. Rxc6 $2 {[%emt 0:00:26]} (37. f5 h4 38. fxg6+ Rxg6+ 39. Kh5) 37... h4 {[%emt 0:00:07] White must now prevent ...h3.} 38. Rc3 {[%emt 0:01:07]} Rg4 {[%emt 0:00:48]} (38... Rg3 $142 39. Rc7+ Kf6) 39. b5 {[%emt 0:00:23] [#]} Rxf4 $2 {[%emt 0:00:31]} (39... Kf6 $1 $19 40. Rh3 Rxf4) 40. Kg5 $11 {[%emt 0:00:19] The position is equal.} Rf5+ {[%emt 0:00:43]} 41. Kxh4 {[%emt 0:30:03]} Rxb5 {[%emt 0:30:06] next ...a5 is good for Black.} 42. Rc7+ {[%emt 0:00:04]} Kf6 {[%emt 0:00:06] With the idea ...a5.} 43. Rxa7 {[%emt 0:00:05]} Rc5 {[%emt 0:00:18]} 44. Ra2 {[%emt 0:01:03]} g5+ {[%emt 0:03:08]} 45. Kg4 {[%emt 0:00:12]} Rc4+ {[%emt 0:01:20]} 46. Kg3 {[%emt 0:00:11]} Kf5 {[%emt 0:01:01]} 47. Ra5+ {[%emt 0:00:12]} Kg6 {[%emt 0:00:04]} 48. Ra2 {[%emt 0:02:04]} Kh5 {[%emt 0:00:08]} 49. Rb2 {[%emt 0:00:00]} Rc3+ {[%emt 0:00:00]} 50. Kg2 {[%emt 0:00:00]} Kh4 {[%emt 0:00:00]} 51. Rb4+ {[%emt 0:00:00]} g4 {[%emt 0:00:00]} 52. Rb3 {[%emt 0:00:00]} Rxc2+ {[%emt 0:00:00]} 53. Kg1 {[%emt 0:00:00]} Re2 {[%emt 0:00:00]} 54. Ra3 $1 {[%emt 0:00:00]} Rb2 {[%emt 0:00:00]} 55. Rc3 {[%emt 0:00:00]} Rd2 {[%emt 0:00:00]} 56. Ra3 {[%emt 0:00:00]} g3 {[%emt 0:00:00]} 57. Ra8 {[%emt 0:00:00]} Kh3 {[%emt 0:00:00][%cal Rd2d1]} 58. Rh8+ {[%emt 0:00:00]} Kg4 {[%emt 0:00:00]} 59. Rg8+ {[%emt 0:00:00]} Kh3 {[%emt 0:00:00][%cal Rd2d1]} (59... Kf3 $5 60. Rf8+ Ke4 $11) 60. Rh8+ {[%emt 0:00:00]} Kg4 {[%emt 0:00:00]} 61. Rg8+ {[%emt 0:00:00]} Kh3 {[%emt 0:00:00][%cal Rd2d1]} (61... Kf3 $5 62. Rf8+ Ke4 $11) 62. Rh8+ {[%emt 0:00:00]} Kg4 {[%emt 0:00:00] Weighted Error Value: White=0.29 (precise) /Black=0.28 (precise)} 1/2-1/2